bitfinex/quotes_BTCUSD_20251001
["timestamp","ask_amount","ask_price","bid_price","bid_amount"]
[1759341133922,1.44873135,116970.0,116960.0,0.12871737]
[1759341135395,0.75117135,116970.0,116960.0,0.12871737]
[1759341135581,1.44881135,116970.0,116960.0,0.12871737]
[1759341135785,1.41853945,116970.0,116960.0,0.12871737]
[1759341136409,1.00381135,116970.0,116960.0,1e-08]
[1759341136615,1.44873135,116970.0,116960.0,1e-08]
[1759341137032,1.44873135,116970.0,116960.0,0.00043567]
[1759341137371,1.44873135,116970.0,116930.0,0.47062785]
[1759341137372,0.51102787,116940.0,116930.0,0.47062785]
[1759341137620,1.01093329,116940.0,116930.0,0.47062785]
[1759341138023,1.03662553,116940.0,116930.0,0.47062785]
[1759341138637,1.03709109,116940.0,116930.0,0.47062785]
[1759341139237,1.06196344,116940.0,116930.0,0.47062785]
[1759341139447,1.09211534,116940.0,116930.0,0.47062785]
[1759341139675,1.44511585,116940.0,116930.0,0.47062785]
[1759341139880,1.51027115,116940.0,116930.0,0.47062785]
[1759341140661,1.51027115,116940.0,116930.0,0.0703645]
[1759341141059,1.16863115,116940.0,116930.0,0.0703645]
[1759341141302,1.16863115,116940.0,116910.0,0.01310543]
[1759341141303,0.54120903,116920.0,116910.0,0.01310543]
[1759341141525,0.89926508,116920.0,116910.0,0.01310543]
[1759341141727,1.22711318,116920.0,116910.0,0.01471543]
[1759341141895,1.31403318,116920.0,116910.0,0.01471543]
[1759341142094,1.31607318,116920.0,116910.0,0.01310543]
[1759341142296,1.31917318,116920.0,116910.0,0.01310543]
[1759341142744,1.31909318,116920.0,116910.0,0.01310543]
[1759341143547,0.62181318,116920.0,116910.0,0.01310543]
[1759341143789,0.89979011,116920.0,116910.0,0.01310543]
[1759341143995,0.64751011,116920.0,116910.0,0.01310543]
[1759341144188,1.34479011,116920.0,116910.0,0.01310543]
[1759341145277,1.34463011,116920.0,116910.0,0.01310543]
[1759341145813,1.33953011,116920.0,116910.0,0.01572543]
[1759341146019,1.33953011,116920.0,116910.0,0.01471543]
[1759341146693,0.51107176,116910.0,116900.0,0.30158658]
[1759341147073,0.34,116910.0,116900.0,0.47267297]
[1759341147286,0.68096,116910.0,116900.0,0.47267297]
[1759341147494,0.38173264,116930.0,116910.0,0.17107176]
[1759341147696,0.68092,116920.0,116910.0,0.17107176]
[1759341147944,0.34,116920.0,116910.0,0.17107176]
[1759341148142,0.34092,116920.0,116910.0,0.18817893]
[1759341148253,0.34092,116920.0,116910.0,0.17216145]
[1759341148449,0.06562086,116940.0,116920.0,0.17105154]
[1759341148702,0.34092,116930.0,116920.0,0.17105154]
[1759341149264,0.34092,116930.0,116910.0,0.17107176]
[1759341149474,0.34092,116930.0,116920.0,0.17105713]
[1759341149983,0.34088,116930.0,116920.0,0.17105713]
[1759341150390,0.38359755,116940.0,116920.0,0.17105713]
[1759341150570,0.3408,116930.0,116920.0,0.17105713]
[1759341150771,0.38359755,116940.0,116920.0,0.17105713]
[1759341150983,0.40562086,116940.0,116920.0,0.17105713]
[1759341151198,0.34072,116930.0,116920.0,0.17105713]
[1759341151566,0.34072,116930.0,116910.0,0.17107176]
[1759341152659,0.34068,116920.0,116910.0,0.17107176]
[1759341154018,0.58520041,116940.0,116920.0,0.17105409]
[1759341154254,0.34068,116930.0,116920.0,0.17105409]
[1759341154475,0.40562086,116940.0,116920.0,0.17105409]
[1759341154715,0.089,116930.0,116920.0,0.17105409]
[1759341154951,0.00046556,116940.0,116920.0,0.17105409]
[1759341154952,0.00046556,116940.0,116930.0,0.1710425]
[1759341155122,0.08946556,116940.0,116930.0,0.1710425]
[1759341155434,0.00046556,116940.0,116930.0,0.1710425]
[1759341155643,0.16202556,116940.0,116930.0,0.1710425]
[1759341155851,0.16202556,116940.0,116930.0,0.21376316]
[1759341156016,0.16202556,116940.0,116930.0,0.1710425]
[1759341156250,0.25206556,116940.0,116930.0,0.2561525]
[1759341156422,0.00046556,116940.0,116930.0,0.2561525]
[1759341156619,0.00046556,116940.0,116930.0,0.2863044]
[1759341156831,0.01766556,116940.0,116930.0,0.2863044]
[1759341157194,0.00046556,116940.0,116930.0,1.00950015]
[1759341157403,0.00046556,116940.0,116930.0,0.67460818]
[1759341158064,0.00046556,116940.0,116930.0,0.69929471]
[1759341158276,0.25006061,116990.0,116980.0,0.17096939]
[1759341158277,0.15949031,116990.0,116980.0,0.17096939]
[1759341158426,0.19517031,116990.0,116980.0,0.17108828]
[1759341158637,0.19517031,116990.0,116980.0,0.03431423]
[1759341158842,0.36816509,116990.0,116980.0,0.00011889]
[1759341159043,0.19517031,116990.0,116980.0,0.00011889]
[1759341159225,0.29664747,116990.0,116980.0,0.00011889]
[1759341159603,0.38535894,116990.0,116980.0,0.00011889]
[1759341159799,0.29868747,116990.0,116980.0,0.00011889]
[1759341160058,0.72689747,116990.0,116980.0,0.00011889]
[1759341160439,0.75257682,116990.0,116980.0,0.00011889]
[1759341161185,0.72689747,116990.0,116980.0,0.00011889]
[1759341161991,0.79689747,116990.0,116980.0,0.00011889]
[1759341162155,0.88560894,116990.0,116980.0,0.00011889]
[1759341170306,0.91576084,116990.0,116980.0,0.00011889]
[1759341174139,0.51099863,116960.0,116950.0,0.00021786]
[1759341174358,0.51099863,116960.0,116950.0,0.00026431]
[1759341174575,0.85059863,116960.0,116950.0,0.00026431]
[1759341175970,0.76151863,116960.0,116950.0,0.00026431]
[1759341176173,0.85047863,116960.0,116950.0,0.00026431]
[1759341176415,0.33948,116960.0,116950.0,0.00026431]
[1759341176597,0.17099863,116960.0,116950.0,0.00026431]
[1759341176829,0.51043863,116960.0,116950.0,0.00026431]
[1759341177022,0.51039863,116960.0,116950.0,0.00026431]
[1759341177236,0.57071701,116960.0,116950.0,0.00026431]
[1759341177649,0.39971838,116960.0,116950.0,0.00026431]
[1759341177844,0.57568888,116970.0,116950.0,0.18837888]
[1759341178080,0.33936,116960.0,116950.0,0.18837888]
[1759341178467,0.33928,116960.0,116950.0,0.17127756]
[1759341178879,0.51027863,116960.0,116950.0,0.00026431]
[1759341179723,0.33928,116960.0,116950.0,0.00026431]
[1759341179934,0.33928,116960.0,116950.0,0.17127756]
[1759341180183,0.17099863,116960.0,116950.0,0.00026431]
[1759341180379,0.51011863,116960.0,116950.0,0.00026431]
[1759341182285,0.33912,116960.0,116950.0,0.17127756]
[1759341182493,0.17099863,116960.0,116950.0,0.00026431]
[1759341182697,0.51011863,116960.0,116950.0,0.00026431]
[1759341182906,0.33912,116960.0,116950.0,0.00026431]
[1759341183105,0.33896,116960.0,116950.0,0.17127756]
[1759341183307,0.57569244,116970.0,116950.0,0.18837888]
[1759341183513,0.50987863,116960.0,116950.0,0.00026431]
[1759341183718,0.51015863,116960.0,116950.0,0.00026431]
[1759341186628,0.85517863,116960.0,116950.0,0.00026431]
[1759341187064,0.94028863,116960.0,116950.0,0.00026431]
[1759341187278,1.01383473,116960.0,116950.0,0.00026431]
[1759341188602,1.04792967,116960.0,116950.0,0.00026431]
[1759341188838,1.05585058,116960.0,116950.0,0.00026431]
[1759341189269,1.41177058,116960.0,116950.0,0.00026431]
[1759341190120,0.71167058,116960.0,116950.0,0.00026431]
[1759341190337,1.41177058,116960.0,116950.0,0.00026431]
[1759341191339,1.41553058,116960.0,116950.0,0.00026431]
[1759341192016,0.96559058,116960.0,116950.0,0.00026431]
[1759341192186,1.41047058,116960.0,116950.0,0.00026431]
[1759341192410,1.41549058,116960.0,116950.0,0.00026431]
[1759341192766,0.71669058,116960.0,116950.0,0.00026431]
[1759341192974,1.41553058,116960.0,116950.0,0.00026431]
[1759341193182,1.40760967,116960.0,116950.0,0.00026431]
[1759341194674,0.70577967,116960.0,116950.0,0.00026431]
[1759341194878,1.40262967,116960.0,116950.0,0.00026431]
[1759341195286,1.41556129,116960.0,116950.0,0.00026431]
[1759341197338,1.44571319,116960.0,116950.0,0.00026431]
[1759341198161,1.44571319,116960.0,116950.0,1e-08]
[1759341198922,1.47595568,116960.0,116950.0,1e-08]
[1759341199371,1.44571319,116960.0,116950.0,1e-08]
[1759341202617,1.44575319,116960.0,116950.0,1e-08]
[1759341205391,1.44555319,116960.0,116950.0,1e-08]
[1759341205753,9.44555319,116960.0,116950.0,1e-08]
[1759341207613,0.74683319,116960.0,116950.0,1e-08]
[1759341207827,1.80151319,116960.0,116950.0,1e-08]
[1759341208639,1.44535319,116960.0,116950.0,1e-08]
[1759341209916,1.44515319,116960.0,116950.0,1e-08]
[1759341210699,0.74683319,116960.0,116950.0,1e-08]
[1759341210894,1.44527319,116960.0,116950.0,1e-08]
[1759341212294,1.78065722,116960.0,116950.0,1e-08]
[1759341213690,1.08221722,116960.0,116950.0,1e-08]
[1759341213888,1.78057722,116960.0,116950.0,1e-08]
[1759341214326,1.08221722,116960.0,116950.0,1e-08]
[1759341214641,1.81061971,116960.0,116950.0,1e-08]
[1759341215218,1.81057971,116960.0,116950.0,1e-08]
[1759341217300,1.85611741,116960.0,116950.0,1e-08]
[1759341217986,1.15799741,116960.0,116950.0,1e-08]
[1759341218301,1.85592684,116960.0,116950.0,1e-08]
[1759341218823,0.81800684,116960.0,116950.0,1e-08]
[1759341219065,0.73932724,116960.0,116950.0,1e-08]
[1759341219250,0.99793462,116960.0,116950.0,1e-08]
[1759341219372,1.34089462,116960.0,116950.0,1e-08]
[1759341221565,0.64313462,116960.0,116950.0,1e-08]
[1759341221808,0.92134114,116960.0,116950.0,1e-08]
[1759341222013,1.36638114,116960.0,116950.0,1e-08]
[1759341222252,1.82062854,116960.0,116950.0,1e-08]
[1759341222447,1.12306854,116960.0,116950.0,1e-08]
[1759341222665,1.82058854,116960.0,116950.0,1e-08]
[1759341224324,1.85083103,116960.0,116950.0,1e-08]
[1759341224770,1.89628873,116960.0,116950.0,1e-08]
[1759341224988,1.85075103,116960.0,116950.0,1e-08]
[1759341225621,1.15331103,116960.0,116950.0,1e-08]
[1759341225829,1.85067103,116960.0,116950.0,1e-08]
[1759341226255,1.89620873,116960.0,116950.0,1e-08]
[1759341226434,1.15334896,116960.0,116950.0,1e-08]
[1759341226676,1.89628666,116960.0,116950.0,1e-08]
[1759341226894,0.17107176,116910.0,116900.0,0.33174947]
[1759341227091,0.51259108,116910.0,116900.0,0.40122709]
[1759341227295,0.34151932,116910.0,116900.0,0.40122709]
[1759341227419,0.34151932,116910.0,116900.0,0.40231693]
[1759341227610,0.34139932,116910.0,116900.0,0.40231693]
[1759341227813,0.17119108,116910.0,116900.0,0.33283931]
[1759341228018,0.17119108,116910.0,116900.0,0.34927273]
[1759341228217,0.34135932,116910.0,116900.0,0.34927273]
[1759341228423,0.51243108,116910.0,116900.0,0.33283931]
[1759341228626,0.51243108,116910.0,116900.0,0.15319874]
[1759341229006,0.34135932,116910.0,116900.0,0.32428513]
[1759341230157,0.51243108,116910.0,116900.0,0.32428513]
[1759341230604,0.34135932,116910.0,116900.0,0.32428513]
[1759341230777,0.51243108,116910.0,116900.0,0.32428513]
[1759341231000,0.34135932,116910.0,116900.0,0.32428513]
[1759341231376,0.34107932,116910.0,116900.0,0.32428513]
[1759341231828,0.51215108,116910.0,116900.0,0.32428513]
[1759341233023,0.24119108,116910.0,116900.0,0.15319874]
[1759341233315,0.58211108,116910.0,116900.0,0.15319874]
[1759341233518,0.58211108,116910.0,116900.0,0.32428513]
[1759341234306,0.41103932,116910.0,116900.0,0.32428513]
[1759341235674,0.07011932,116910.0,116900.0,0.32428513]
[1759341235880,0.41091932,116910.0,116900.0,0.32428513]
[1759341236265,0.32163932,116910.0,116900.0,0.32428513]
[1759341237266,0.32159932,116910.0,116900.0,0.32428513]
[1759341238445,0.07011932,116910.0,116900.0,0.32428513]
[1759341238647,0.32155932,116910.0,116900.0,0.32428513]
[1759341239094,0.32155932,116910.0,116900.0,0.30683065]
[1759341239095,0.32147932,116910.0,116900.0,0.30683065]
[1759341239306,0.32147932,116910.0,116900.0,0.35547892]
[1759341240250,0.49759108,116910.0,116900.0,0.13574426]
[1759341240427,0.92270108,116910.0,116900.0,0.13574426]
[1759341241431,1.66016639,116910.0,116900.0,0.13574426]
[1759341241635,1.67841926,116910.0,116900.0,0.13574426]
[1759341242270,1.32474443,116910.0,116900.0,0.13574426]
[1759341242512,1.38510281,116910.0,116900.0,0.13574426]
[1759341242901,1.35495091,116910.0,116900.0,0.13574426]
[1759341243050,1.33909946,116910.0,116900.0,0.13574426]
[1759341244107,1.36479694,116910.0,116900.0,0.13574426]
[1759341244722,1.39884692,116910.0,116900.0,0.13574426]
[1759341245564,1.42899882,116910.0,116900.0,0.13574426]
[1759341246099,1.76442078,116910.0,116900.0,1e-08]
[1759341246306,1.43690633,116910.0,116900.0,1e-08]
[1759341251835,1.77232829,116910.0,116900.0,1e-08]
[1759341252076,1.43690633,116910.0,116900.0,1e-08]
[1759341252287,1.77232829,116910.0,116900.0,1e-08]
[1759341252656,1.43690633,116910.0,116900.0,1e-08]
[1759341253290,1.77232829,116910.0,116900.0,1e-08]
[1759341254288,1.77232829,116910.0,116880.0,0.48364325]
[1759341254289,0.51110103,116890.0,116880.0,0.48364325]
[1759341254493,0.73023744,116890.0,116880.0,0.48364325]
[1759341254652,1.42924744,116890.0,116880.0,0.48364325]
[1759341255253,1.45494998,116890.0,116880.0,0.48364325]
[1759341257310,0.75394998,116890.0,116880.0,0.48364325]
[1759341257515,1.44994998,116890.0,116880.0,0.48364325]
[1759341258270,1.08420744,116890.0,116880.0,0.48364325]
[1759341258477,1.42420744,116890.0,116880.0,0.48364325]
[1759341258701,1.42619744,116890.0,116880.0,0.48364325]
[1759341259506,1.42420744,116890.0,116880.0,0.48364325]
[1759341259954,1.42420744,116890.0,116880.0,0.48407935]
[1759341260161,1.06796744,116890.0,116880.0,0.48407935]
[1759341260372,0.72824744,116890.0,116880.0,0.48407935]
[1759341260686,0.99787492,116890.0,116880.0,0.48407935]
[1759341261485,1.00289492,116890.0,116880.0,0.48407935]
[1759341261703,0.99987492,116890.0,116880.0,0.48407935]
[1759341261879,0.99787492,116890.0,116880.0,0.48407935]
[1759341262952,1.10807492,116890.0,116880.0,0.48407935]
[1759341263169,1.53650639,116890.0,116880.0,0.48407935]
[1759341264757,1.53650639,116890.0,116880.0,0.48422341]
[1759341265226,1.44779492,116890.0,116880.0,0.48422341]
[1759341265402,1.10807492,116890.0,116880.0,0.48422341]
[1759341265608,1.44759492,116890.0,116880.0,0.48422341]
[1759341267524,1.35855492,116890.0,116880.0,0.48422341]
[1759341267753,1.44759492,116890.0,116880.0,0.48422341]
[1759341267935,1.53614639,116890.0,116880.0,0.48422341]
[1759341269119,1.57022638,116890.0,116880.0,0.48422341]
[1759341269694,1.23086638,116890.0,116880.0,0.48422341]
[1759341269873,1.57018638,116890.0,116880.0,0.48422341]
[1759341270565,1.57520638,116890.0,116880.0,0.48422341]
[1759341271744,1.57218638,116890.0,116880.0,0.48422341]
[1759341272202,1.57520638,116890.0,116880.0,0.48422341]
[1759341272400,1.58312873,116890.0,116880.0,0.48422341]
[1759341272808,1.58010873,116890.0,116880.0,0.48422341]
[1759341273426,1.58312873,116890.0,116880.0,0.48422341]
[1759341273822,1.58010873,116890.0,116880.0,0.48422341]
[1759341274048,1.58312873,116890.0,116880.0,0.48422341]
[1759341274481,1.58314947,116890.0,116880.0,0.48422341]
[1759341274655,1.58012947,116890.0,116880.0,0.48422341]
[1759341275271,1.57812947,116890.0,116880.0,0.48422341]
[1759341275475,1.58314947,116890.0,116880.0,0.48422341]
[1759341276054,1.61339196,116890.0,116880.0,0.48422341]
[1759341276263,1.6390945,116890.0,116880.0,0.48422341]
[1759341276671,1.5498545,116890.0,116880.0,0.48422341]
[1759341276867,1.9950545,116890.0,116880.0,0.48422341]
[1759341277396,1.2997745,116890.0,116880.0,0.48422341]
[1759341277594,1.9919945,116890.0,116880.0,0.48422341]
[1759341278105,1.5421945,116890.0,116880.0,0.48422341]
[1759341278392,1.51195201,116890.0,116880.0,0.48422341]
[1759341278935,1.51497201,116890.0,116880.0,0.48422341]
[1759341280593,0.81973201,116890.0,116880.0,0.48422341]
[1759341280994,1.42299201,116890.0,116880.0,0.48422341]
[1759341281230,1.51203201,116890.0,116880.0,0.2542991]
[1759341282042,0.72600054,116890.0,116880.0,0.2542991]
[1759341282199,0.700298,116890.0,116880.0,0.2542991]
[1759341282406,0.23491739,116890.0,116880.0,0.2542991]
[1759341282628,0.23491739,116890.0,116880.0,0.42541477]
[1759341282831,0.15285636,116890.0,116880.0,0.42541477]
[1759341283032,0.08904,116890.0,116880.0,0.48506922]
[1759341283232,0.339,116890.0,116880.0,0.48506922]
[1759341283511,0.24996,116890.0,116880.0,0.48506922]
[1759341284889,0.69498493,116910.0,116900.0,0.17108639]
[1759341284890,0.07011932,116910.0,116900.0,0.17108639]
[1759341285186,0.40907932,116910.0,116900.0,0.18819502]
[1759341285774,0.07011932,116910.0,116900.0,0.18833908]
[1759341286006,0.31995932,116910.0,116900.0,0.17123045]
[1759341286231,0.31995932,116910.0,116900.0,9.32882294]
[1759341286232,0.00011932,116910.0,116900.0,9.32882294]
[1759341286474,0.00011932,116910.0,116900.0,9.06500382]
[1759341286683,0.00011932,116910.0,116900.0,9.42542578]
[1759341286917,0.00011932,116910.0,116900.0,9.09000382]
[1759341287304,1e-08,116910.0,116900.0,9.09000382]
[1759341288289,1e-08,116910.0,116900.0,9.10742802]
[1759341289836,1e-08,116910.0,116900.0,9.36404802]
[1759341290782,1e-08,116910.0,116900.0,1.11424802]
[1759341290988,1e-08,116910.0,116900.0,0.99880802]
[1759341291406,1e-08,116910.0,116900.0,1.33880802]
[1759341292682,1e-08,116910.0,116900.0,0.98924802]
[1759341292859,1e-08,116910.0,116900.0,1.33868802]
[1759341293020,1e-08,116910.0,116900.0,1.36368802]
[1759341293223,1e-08,116910.0,116900.0,1.26368802]
[1759341293425,1e-08,116910.0,116900.0,1.36368802]
[1759341293933,1e-08,116910.0,116900.0,9.36368802]
[1759341294094,1e-08,116910.0,116900.0,9.26368802]
[1759341294304,1e-08,116910.0,116900.0,9.36368802]
[1759341294453,1e-08,116910.0,116900.0,9.36348802]
[1759341294652,1e-08,116910.0,116900.0,9.11424802]
[1759341294901,1e-08,116910.0,116900.0,9.36348802]
[1759341295102,1e-08,116910.0,116900.0,9.11424802]
[1759341295305,1e-08,116910.0,116900.0,9.45248802]
[1759341295462,1e-08,116910.0,116900.0,9.45244802]
[1759341296295,1e-08,116910.0,116900.0,9.11424802]
[1759341296605,1e-08,116910.0,116900.0,0.98924802]
[1759341296761,1e-08,116910.0,116900.0,0.64924802]
[1759341296996,1e-08,116910.0,116900.0,0.89836802]
[1759341297691,1e-08,116910.0,116900.0,1.23836802]
[1759341299091,1e-08,116910.0,116900.0,0.98924802]
[1759341299359,1e-08,116910.0,116900.0,1.23828802]
[1759341299752,1e-08,116910.0,116900.0,0.98924802]
[1759341299926,1e-08,116910.0,116900.0,1.23820802]
[1759341300392,1e-08,116910.0,116900.0,1.23816802]
[1759341303350,1e-08,116910.0,116900.0,0.98924802]
[1759341303492,1e-08,116910.0,116900.0,1.23816802]
[1759341306333,1e-08,116910.0,116900.0,0.98924802]
[1759341306535,0.00209001,116910.0,116900.0,0.51296045]
[1759341306742,0.00514001,116910.0,116900.0,0.76176045]
[1759341306951,0.00209001,116910.0,116900.0,0.42785045]
[1759341307179,0.17621177,116910.0,116900.0,0.42785045]
[1759341307414,0.17621177,116910.0,116900.0,0.25676406]
[1759341307841,0.17107177,116910.0,116900.0,0.42785045]
[1759341308048,0.17107177,116910.0,116900.0,0.25676406]
[1759341308221,0.17107177,116910.0,116900.0,0.42785045]
[1759341308430,0.17107177,116910.0,116900.0,0.25676406]
[1759341308675,0.17621177,116910.0,116900.0,0.25676406]
[1759341309007,0.17107177,116910.0,116900.0,0.25676406]
[1759341309259,0.17107177,116910.0,116900.0,0.42785045]
[1759341310216,0.50887177,116910.0,116900.0,0.42785045]
[1759341310456,0.50887177,116910.0,116900.0,0.23702598]
[1759341310784,0.17107177,116910.0,116900.0,0.23702598]
[1759341311134,0.50887177,116910.0,116900.0,0.23702598]
[1759341311567,0.17107177,116910.0,116900.0,0.23702598]
[1759341311776,0.24880001,116910.0,116900.0,0.23702598]
[1759341312162,0.33780001,116910.0,116900.0,0.23702598]
[1759341312862,1e-08,116910.0,116900.0,0.27785917]
[1759341313715,1e-08,116910.0,116900.0,0.36296917]
[1759341313922,1e-08,116910.0,116900.0,0.70296917]
[1759341316381,1e-08,116910.0,116900.0,0.73312107]
[1759341320916,1e-08,116910.0,116900.0,0.83312107]
[1759341321668,1e-08,116910.0,116900.0,8.83312107]
[1759341326107,1e-08,116910.0,116900.0,9.08188107]
[1759341327041,1e-08,116910.0,116900.0,8.98188107]
[1759341327236,1e-08,116910.0,116900.0,9.08188107]
[1759341328059,1e-08,116910.0,116900.0,8.98188107]
[1759341328476,1e-08,116910.0,116900.0,9.10688107]
[1759341330156,1e-08,116910.0,116900.0,8.85812107]
[1759341330377,1e-08,116910.0,116900.0,9.00688107]
[1759341330583,1e-08,116910.0,116900.0,9.10688107]
[1759341331233,1e-08,116910.0,116900.0,9.00688107]
[1759341331434,1e-08,116910.0,116900.0,9.10688107]
[1759341332715,1e-08,116910.0,116900.0,9.13256398]
[1759341333202,1e-08,116910.0,116900.0,9.19400605]
[1759341334808,1e-08,116910.0,116900.0,9.28391605]
[1759341338854,1e-08,116910.0,116900.0,9.30836441]
[1759341339317,1e-08,116910.0,116900.0,9.24692234]
[1759341339522,1e-08,116910.0,116900.0,9.22247398]
[1759341340810,1e-08,116910.0,116900.0,9.24692234]
[1759341341016,1e-08,116910.0,116900.0,9.29894474]
[1759341341520,1e-08,116910.0,116900.0,9.3233931]
[1759341342089,1e-08,116910.0,116900.0,9.29771019]
[1759341342470,1e-08,116910.0,116900.0,9.27326183]
[1759341343359,1e-08,116910.0,116900.0,9.19679107]
[1759341344160,1e-08,116910.0,116900.0,9.26860616]
[1759341344729,1e-08,116910.0,116900.0,9.29305452]
[1759341345125,1e-08,116910.0,116900.0,9.21623943]
[1759341345326,1e-08,116910.0,116900.0,9.26859549]
[1759341345549,1e-08,116910.0,116900.0,9.01983549]
[1759341345765,0.06947762,116950.0,116940.0,0.17102787]
[1759341345975,0.06952441,116950.0,116940.0,0.29034359]
[1759341346342,0.06952441,116950.0,116940.0,0.74256359]
[1759341346543,4.679e-05,116950.0,116940.0,0.51275036]
[1759341346750,4.679e-05,116950.0,116940.0,0.68377823]
[1759341347821,4.679e-05,116950.0,116940.0,0.9475601]
[1759341361818,4.679e-05,116950.0,116940.0,0.93245823]
[1759341364487,0.00521679,116950.0,116940.0,0.68377823]
[1759341364626,0.00521679,116950.0,116940.0,0.89813251]
[1759341365010,4.679e-05,116950.0,116940.0,0.89813251]
[1759341365635,0.07004679,116950.0,116940.0,0.89813251]
[1759341365858,0.07004679,116950.0,116940.0,0.64957251]
[1759341366048,0.07004679,116950.0,116940.0,0.98170736]
[1759341366659,0.06906924,116950.0,116940.0,0.98170736]
[1759341368463,0.07423924,116950.0,116940.0,0.70682272]
[1759341368663,0.07423924,116950.0,116940.0,0.95538272]
[1759341369068,0.06906924,116950.0,116940.0,0.95538272]
[1759341370279,0.06906924,116950.0,116940.0,0.95553276]
[1759341370458,0.06906924,116950.0,116940.0,0.87195791]
[1759341370662,0.06906924,116950.0,116940.0,0.62339791]
[1759341374444,0.07423924,116950.0,116940.0,0.62339791]
[1759341374828,0.24008249,116950.0,116940.0,0.62339791]
[1759341375037,0.07423924,116950.0,116940.0,0.62339791]
[1759341375439,0.06906924,116950.0,116940.0,0.62339791]
[1759341376154,0.24008249,116950.0,116940.0,0.71210938]
[1759341376352,0.24008249,116950.0,116940.0,0.62339791]
[1759341377151,0.24525249,116950.0,116940.0,0.62339791]
[1759341377304,0.24220249,116950.0,116940.0,0.62339791]
[1759341377513,0.24008249,116950.0,116940.0,0.62339791]
[1759341379792,0.24220249,116950.0,116940.0,0.62339791]
[1759341379948,0.24525249,116950.0,116940.0,0.62339791]
[1759341380131,0.24220249,116950.0,116940.0,0.62339791]
[1759341380332,0.24205249,116950.0,116940.0,0.62339791]
[1759341380858,0.24008249,116950.0,116940.0,0.62339791]
[1759341381665,0.24211249,116950.0,116940.0,0.62339791]
[1759341382013,0.24506249,116950.0,116940.0,0.62339791]
[1759341382429,0.24211249,116950.0,116940.0,0.62339791]
[1759341383297,0.24008249,116950.0,116940.0,0.62339791]
[1759341385126,0.24211249,116950.0,116940.0,0.62339791]
[1759341385675,0.06906924,116950.0,116940.0,0.62339791]
[1759341385882,0.48860249,116950.0,116940.0,0.70284063]
[1759341386080,0.49063249,116950.0,116940.0,0.70284063]
[1759341386322,0.49358249,116950.0,116940.0,0.62339791]
[1759341386834,0.49063249,116950.0,116940.0,0.62339791]
[1759341388046,0.06906924,116950.0,116940.0,0.62339791]
[1759341388249,0.31961924,116950.0,116940.0,0.62339791]
[1759341388464,0.49358249,116950.0,116940.0,0.62339791]
[1759341388668,0.49063249,116950.0,116940.0,0.62339791]
[1759341388875,0.24211249,116950.0,116940.0,0.62339791]
[1759341389189,0.31758924,116950.0,116940.0,0.62339791]
[1759341389593,0.31758924,116950.0,116940.0,0.70284063]
[1759341389977,0.49063249,116950.0,116940.0,0.70284063]
[1759341390291,0.48860249,116950.0,116940.0,0.70284063]
[1759341390931,0.49063249,116950.0,116940.0,0.70284063]
[1759341391327,0.31758924,116950.0,116940.0,0.70284063]
[1759341392032,0.31758924,116950.0,116940.0,0.70195788]
[1759341393215,0.06906924,116950.0,116940.0,0.70195788]
[1759341393423,0.31754924,116950.0,116940.0,0.70195788]
[1759341397218,0.06906924,116950.0,116940.0,0.70195788]
[1759341397421,0.31754924,116950.0,116940.0,0.70195788]
[1759341398375,0.06906924,116950.0,116940.0,0.70195788]
[1759341398610,0.31754924,116950.0,116940.0,0.70195788]
[1759341399869,0.06906924,116950.0,116940.0,0.70195788]
[1759341400086,0.2232,116950.0,116940.0,0.78706788]
[1759341400957,0.22818,116950.0,116940.0,0.62251516]
[1759341401399,0.2232,116950.0,116940.0,0.62251516]
[1759341404449,0.22336149,116950.0,116940.0,0.62251516]
[1759341405065,0.39935474,116950.0,116940.0,0.62251516]
[1759341405267,0.22834149,116950.0,116940.0,0.62251516]
[1759341405469,0.2932,116950.0,116940.0,0.62235367]
[1759341406175,0.2932,116950.0,116940.0,0.70169197]
[1759341406908,0.2932,116950.0,116940.0,0.62235367]
[1759341407505,0.31844,116950.0,116940.0,0.62235367]
[1759341407742,0.3184,116950.0,116940.0,0.62235367]
[1759341408408,0.07,116950.0,116940.0,0.62235367]
[1759341408567,0.3184,116950.0,116940.0,0.62235367]
[1759341408983,0.07,116950.0,116940.0,0.62235367]
[1759341409190,0.3184,116950.0,116940.0,0.62235367]
[1759341411036,0.07,116950.0,116940.0,0.62235367]
[1759341411197,0.3184,116950.0,116940.0,0.70169197]
[1759341411420,0.07,116950.0,116940.0,0.70169197]
[1759341411622,0.3184,116950.0,116940.0,0.70169197]
[1759341412370,0.3184,116950.0,116940.0,0.62235367]
[1759341413137,0.07,116950.0,116940.0,0.62235367]
[1759341413344,0.3184,116950.0,116940.0,0.62235367]
[1759341414959,0.07,116950.0,116940.0,0.62235367]
[1759341415182,0.3184,116950.0,116940.0,0.62235367]
[1759341415361,0.3184,116950.0,116940.0,0.7016503]
[1759341416548,0.31836,116950.0,116940.0,0.7016503]
[1759341416977,0.31836,116950.0,116940.0,0.70096528]
[1759341417182,0.07,116950.0,116940.0,0.70096528]
[1759341417330,0.31836,116950.0,116940.0,0.70096528]
[1759341418287,0.31836,116950.0,116940.0,0.70028628]
[1759341419756,0.32343,116950.0,116940.0,0.70028628]
[1759341419968,0.49444325,116950.0,116940.0,0.44992011]
[1759341420238,0.91955325,116950.0,116940.0,0.44598509]
[1759341420471,1.33919514,116950.0,116940.0,0.43948509]
[1759341420684,1.33919514,116950.0,116940.0,0.00403306]
[1759341420685,1.35745106,116950.0,116940.0,0.00403306]
[1759341420894,1.44616253,116950.0,116940.0,1e-08]
[1759341421549,1.47622948,116950.0,116940.0,1e-08]
[1759341422173,1.49626329,116950.0,116940.0,1e-08]
[1759341422637,0.89202329,116950.0,116940.0,1e-08]
[1759341422886,1.94114329,116950.0,116940.0,1e-08]
[1759341423989,0.89202329,116950.0,116940.0,1e-08]
[1759341424221,1.92046954,116950.0,116940.0,1e-08]
[1759341424441,0.17107176,116910.0,116900.0,0.06947762]
[1759341424660,1.32367465,116910.0,116900.0,0.06947762]
[1759341424892,1.32569465,116910.0,116900.0,0.06947762]
[1759341425127,0.51108639,116900.0,116890.0,0.00021803]
[1759341425362,0.59619639,116900.0,116890.0,0.00021803]
[1759341425570,0.60126639,116900.0,116890.0,0.00021803]
[1759341425737,0.64150123,116900.0,116890.0,0.00068359]
[1759341425903,0.97882123,116900.0,116890.0,0.00068359]
[1759341427241,1.33486123,116900.0,116890.0,0.00068359]
[1759341428560,1.70017938,116900.0,116890.0,0.00068359]
[1759341428789,1.00681938,116900.0,116890.0,0.00068359]
[1759341429014,1.70017938,116900.0,116890.0,0.00068359]
[1759341429291,1.00681938,116900.0,116890.0,0.00068359]
[1759341429521,1.70021938,116900.0,116890.0,0.00068359]
[1759341430071,1.28524633,116900.0,116890.0,1e-08]
[1759341430367,1.73028633,116900.0,116890.0,1e-08]
[1759341430626,1.28524633,116900.0,116890.0,1e-08]
[1759341430795,1.73028633,116900.0,116890.0,1e-08]